fUSD/lending_fUSD_20240620
["ID","MTS","AMOUNT","RATE_DAILY","PERIOD"]
[329988572,1718900007380,-500.0,0.00044109,120]
[329988573,1718900007406,-4019.06,0.00044109,120]
[329988574,1718900007431,-500.0,0.00044109,120]
[329988575,1718900007458,-500.0,0.00044109,120]
[329988576,1718900007484,-541.53,0.00044109,120]
[329988577,1718900007513,-500.0,0.00044109,120]
[329988578,1718900007539,-765.62,0.00044109,120]
[329988579,1718900007568,-557.27,0.00044109,120]
[329988580,1718900007593,-500.0,0.00044109,120]
[329988581,1718900007619,-183.44919306,0.00044109,120]
[329988582,1718900007647,-500.0,0.00044109,120]
[329988583,1718900007673,-500.0,0.00044109,120]
[329988584,1718900007700,-10288.83,0.00044109,120]
[329988585,1718900007728,-1191.07,0.00044109,120]
[329988586,1718900007754,-2840.05,0.00044109,120]
[329988587,1718900007779,-639.74,0.00044109,120]
[329988588,1718900007804,-693.8,0.00044109,120]
[329988589,1718900007833,-368.75,0.00044109,120]
[329988590,1718900007859,-500.0,0.00044109,120]
[329988591,1718900007884,-562.39,0.00044109,120]
[329988592,1718900007911,-671.26,0.00044109,120]
[329988593,1718900007938,-601.78247418,0.00044109,120]
[329988594,1718900007964,-1140.79,0.00044109,120]
[329988595,1718900007990,-288.05572948,0.00044109,120]
[329988596,1718900008015,-1174.23,0.00044109,120]
[329988597,1718900008041,-500.0,0.00044109,120]
[329988598,1718900008069,-500.0,0.00044109,120]
[329988599,1718900008094,-500.0,0.00044109,120]
[329988600,1718900008118,-500.0,0.00044109,120]
[329988601,1718900008142,-500.0,0.00044109,120]
[329988602,1718900008167,-1829.84,0.00044109,120]
[329988603,1718900008192,-617.11,0.00044109,120]
[329988604,1718900008218,-3965.02,0.00044109,120]
[329988605,1718900008243,-500.0,0.00044109,120]
[329988606,1718900008267,-592.27,0.00044109,120]
[329988607,1718900008291,-628.82515562,0.00044109,120]
[329988608,1718900008318,-7899.83,0.00044109,120]
[329988609,1718900008342,-539.15875057,0.00044109,120]
[329988610,1718900008367,-5049.28,0.00044109,120]
[329988611,1718900008390,-434.99,0.00044109,120]
[329988612,1718900008415,-500.0,0.00044109,120]
[329988613,1718900008440,-500.0,0.00044109,120]
[329988614,1718900008465,-597.04638419,0.00044109,120]
[329988615,1718900008490,-500.0,0.00044109,120]
[329988616,1718900008517,-251.76,0.00044109,120]
[329988617,1718900008543,-3061.29,0.00044109,120]
[329988618,1718900008570,-500.0,0.00044109,120]
[329988619,1718900008596,-500.0,0.00044109,120]
[329988620,1718900008628,-1095.71,0.00044109,120]
[329988621,1718900008656,-500.0,0.00044109,120]
[329988622,1718900008682,-577.95,0.00044109,120]
[329988623,1718900008708,-1229.68,0.00044109,120]
[329988624,1718900008733,-856.18,0.00044109,120]
[329988625,1718900008760,-500.0,0.00044109,120]
[329988626,1718900008785,-2778.78,0.00044109,120]
[329988627,1718900008810,-269.46,0.00044109,120]
[329988628,1718900008839,-500.0,0.00044109,120]
[329988629,1718900008864,-500.0,0.00044109,120]
[329988630,1718900008891,-5509.83,0.00044109,120]
[329988631,1718900008918,-500.0,0.00044109,120]
[329988632,1718900008944,-1171.19,0.00044109,120]
[329988633,1718900008971,-962.26,0.00044109,120]
[329988634,1718900008996,-500.0,0.00044109,120]
[329988635,1718900009022,-500.0,0.00044109,120]
[329988636,1718900009048,-1487.04,0.00044109,120]
[329988637,1718900009074,-500.0,0.00044109,120]
[329988638,1718900009098,-500.0,0.00044109,120]
[329988639,1718900009122,-500.0,0.00044109,120]
[329988640,1718900009148,-500.0,0.00044109,120]
[329988641,1718900009172,-1344.84,0.00044109,120]
[329988642,1718900009200,-726.84,0.00044109,120]
[329988643,1718900009225,-500.0,0.00044109,120]
[329988644,1718900009251,-500.0,0.00044109,120]
[329988645,1718900009276,-500.0,0.00044109,120]
[329988646,1718900009301,-837.29,0.00044109,120]
[329988647,1718900009331,-500.0,0.00044109,120]
[329988648,1718900009355,-1233.74,0.00044109,120]
[329988649,1718900009380,-690.42,0.00044109,120]
[329988650,1718900009405,-500.0,0.00044109,120]
[329988651,1718900009430,-1968.52,0.00044109,120]
[329988652,1718900009455,-500.0,0.00044109,120]
[329988653,1718900009481,-1665.54,0.00044109,120]
[329988654,1718900009507,-1042.91,0.00044109,120]
[329988655,1718900009532,-500.0,0.00044109,120]
[329988656,1718900009558,-500.0,0.00044109,120]
[329988657,1718900009589,-1721.07,0.00044109,120]
[329988658,1718900009754,-513.15,0.00044109,120]
[329988659,1718900009788,-813.19,0.00044109,120]
[329988660,1718900009816,-500.0,0.00044109,120]
[329988661,1718900009841,-159.47,0.00044109,120]
[329988662,1718900009866,-732.45,0.00044109,120]
[329988663,1718900009893,-915.89,0.00044109,120]
[329988664,1718900009919,-500.0,0.00044109,120]
[329988665,1718900009945,-544.67,0.00044109,120]
[329988666,1718900009970,-500.0,0.00044109,120]
[329988667,1718900009996,-626.44,0.00044109,120]
[329988668,1718900010022,-500.0,0.00044109,120]
[329988669,1718900010047,-500.0,0.00044109,120]
[329988670,1718900010072,-543.79,0.00044109,120]
[329988671,1718900010097,-533.83,0.00044109,120]
[329988672,1718900010123,-500.0,0.00044109,120]
[329988673,1718900010150,-655.88,0.00044109,120]
[329988674,1718900010176,-705.55,0.00044109,120]
[329988675,1718900010202,-500.0,0.00044109,120]
[329988676,1718900010228,-500.0,0.00044109,120]
[329988677,1718900010254,-500.0,0.00044109,120]
[329988678,1718900010279,-856.6,0.00044109,120]
[329988679,1718900010306,-693.91,0.00044109,120]
[329988680,1718900010334,-420.51,0.00044109,120]
[329988681,1718900010359,-810.03645491,0.000442,120]
[329988682,1718900010384,-810.03645487,0.000442,120]
[329988683,1718900010408,-810.03645487,0.000442,120]
[329988684,1718900010433,-810.03645487,0.000442,120]
[329988685,1718900010458,-810.03645487,0.000442,120]
[329988686,1718900010484,-168.65555556,0.00044274,120]
[329988687,1718900010511,-500.0,0.00044383,120]
[329988688,1718900010536,-150.0,0.00044383,120]
[329988689,1718900010562,-1192.0,0.00044383,120]
[329988690,1718900010590,-500.0,0.00044383,120]
[329988691,1718900010618,-1500.0,0.00044383,120]
[329988692,1718900010644,-1195.47,0.00044383,120]
[329988693,1718900010672,-533.72364728,0.00044383,120]
[329988694,1718900010700,-500.0,0.00044383,120]
[329988695,1718900010728,-179.74,0.00044383,120]
[329988696,1718900010755,-500.0,0.00044383,120]
[329988697,1718900010782,-500.0,0.00044383,120]
[329988698,1718900010808,-500.0,0.00044383,120]
[329988699,1718900010837,-500.0,0.00044383,120]
[329988700,1718900010864,-500.0,0.00044383,120]
[329988701,1718900010891,-500.0,0.00044383,120]
[329988702,1718900010919,-500.0,0.00044383,120]
[329988703,1718900010947,-500.0,0.00044383,120]
[329988704,1718900010972,-500.0,0.00044383,120]
[329988705,1718900010998,-564.12,0.00044383,120]
[329988706,1718900011025,-500.0,0.00044383,120]
[329988707,1718900011051,-500.0,0.00044383,120]
[329988708,1718900011082,-500.0,0.00044383,120]
[329988709,1718900011109,-500.0,0.00044383,120]
[329988710,1718900011136,-500.0,0.00044383,120]
[329988711,1718900011162,-500.0,0.00044383,120]
[329988712,1718900011189,-500.0,0.00044383,120]
[329988713,1718900011214,-500.0,0.00044383,120]
[329988714,1718900011241,-500.0,0.00044383,120]
[329988715,1718900011267,-500.0,0.00044383,120]
[329988716,1718900011293,-500.0,0.00044383,120]
[329988717,1718900011324,-500.0,0.00044383,120]
[329988718,1718900011349,-748.3,0.00044383,120]
[329988719,1718900011375,-500.0,0.00044383,120]
[329988720,1718900011401,-500.0,0.00044383,120]
[329988721,1718900011427,-2000.0,0.00044383,30]
[329988722,1718900011452,-269.34,0.00044383,120]
[329988723,1718900011478,-610.39,0.00044383,120]
[329988724,1718900011504,-500.0,0.00044383,120]
[329988725,1718900011531,-500.0,0.00044383,120]
[329988726,1718900011559,-500.0,0.00044383,120]
[329988727,1718900011588,-444.49351549,0.00044383,120]
[329988728,1718900011619,-534.5,0.00044383,120]
[329988729,1718900011645,-500.0,0.00044383,120]
[329988730,1718900011712,-1606.87,0.00044383,120]
[329988731,1718900011741,-1724.15,0.00044383,120]
[329988732,1718900011768,-3055.55,0.00044383,120]
[329988733,1718900011795,-707.05,0.00044383,120]
[329988734,1718900011823,-1511.35,0.00044383,120]
[329988735,1718900011851,-500.0,0.00044383,120]
[329988736,1718900011877,-1183.48,0.00044383,120]
[329988737,1718900011904,-3226.18,0.00044383,120]
[329988738,1718900011931,-500.0,0.00044383,120]
[329988739,1718900011958,-500.0,0.00044383,120]
[329988740,1718900011986,-4019.06,0.00044383,120]
[329988741,1718900012013,-500.0,0.00044383,120]
[329988742,1718900012039,-500.0,0.00044383,120]
[329988743,1718900012065,-500.0,0.00044383,120]
[329988744,1718900012091,-765.62,0.00044383,120]
[329988745,1718900012117,-557.27,0.00044383,120]
[329988746,1718900012144,-500.0,0.00044383,120]
[329988747,1718900012171,-500.0,0.00044383,120]
[329988748,1718900012197,-500.0,0.00044383,120]
[329988749,1718900012225,-10288.83,0.00044383,120]
[329988750,1718900012250,-1191.07,0.00044383,120]
[329988751,1718900012276,-2840.05,0.00044383,120]
[329988752,1718900012302,-639.74,0.00044383,120]
[329988753,1718900012326,-693.8,0.00044383,120]
[329988754,1718900012352,-500.0,0.00044383,120]
[329988755,1718900012376,-562.39,0.00044383,120]
[329988756,1718900012402,-671.26,0.00044383,120]
[329988757,1718900012426,-1140.79,0.00044383,120]
[329988758,1718900012451,-1174.23,0.00044383,120]
[329988759,1718900012476,-500.0,0.00044383,120]
[329988760,1718900012501,-500.0,0.00044383,120]
[329988761,1718900012528,-500.0,0.00044383,120]
[329988762,1718900012553,-500.0,0.00044383,120]
[329988763,1718900012581,-500.0,0.00044383,120]
[329988764,1718900012608,-1829.84,0.00044383,120]
[329988765,1718900012636,-617.11,0.00044383,120]
[329988766,1718900012664,-3965.02,0.00044383,120]
[329988767,1718900012693,-600.26569709,0.00044383,120]
[329988768,1718900012720,-592.27,0.00044383,120]
[329988769,1718900012748,-7899.83,0.00044383,120]
[329988770,1718900012774,-5049.28,0.00044383,120]
[329988771,1718900012802,-500.0,0.00044383,120]
[329988772,1718900012830,-500.0,0.00044383,120]
[329988773,1718900012856,-500.0,0.00044383,120]
[329988774,1718900012883,-3061.29,0.00044383,120]
[329988775,1718900012910,-500.0,0.00044383,120]
[329988776,1718900012936,-500.0,0.00044383,120]
[329988777,1718900012966,-1095.71,0.00044383,120]
[329988778,1718900012990,-500.0,0.00044383,120]
[329988779,1718900013018,-577.95,0.00044383,120]
[329988780,1718900013043,-856.18,0.00044383,120]
[329988781,1718900013071,-500.0,0.00044383,120]
[329988782,1718900013095,-1229.68,0.00044383,120]
[329988783,1718900013120,-2778.78,0.00044383,120]
[329988784,1718900013146,-500.0,0.00044383,120]
[329988785,1718900013172,-500.0,0.00044383,120]
[329988786,1718900013198,-5509.83,0.00044383,120]
[329988787,1718900013222,-500.0,0.00044383,120]
[329988788,1718900013247,-1171.19,0.00044383,120]
[329988789,1718900013272,-962.26,0.00044383,120]
[329988790,1718900013297,-500.0,0.00044383,120]
[329988791,1718900013323,-500.0,0.00044383,120]
[329988792,1718900013351,-1487.04,0.00044383,120]
[329988793,1718900013377,-500.0,0.00044383,120]
[329988794,1718900013401,-500.0,0.00044383,120]
[329988795,1718900013426,-500.0,0.00044383,120]
[329988796,1718900013450,-534.6,0.00044383,120]
[329988797,1718900013473,-1344.84,0.00044383,120]
[329988798,1718900013497,-726.84,0.00044383,120]
[329988799,1718900013521,-500.0,0.00044383,120]
[329988800,1718900013545,-500.0,0.00044383,120]
[329988801,1718900013573,-248.91,0.00044383,120]
[329988802,1718900013596,-837.29,0.00044383,120]
[329988803,1718900013623,-500.0,0.00044383,120]
[329988804,1718900013651,-1233.74,0.00044383,120]
[329988805,1718900013678,-690.42,0.00044383,120]
[329988806,1718900013704,-500.0,0.00044383,120]
[329988807,1718900013734,-1968.52,0.00044383,120]
[329988808,1718900013763,-1665.54,0.00044383,120]
[329988809,1718900013787,-1042.91,0.00044383,120]
[329988810,1718900013811,-500.0,0.00044383,120]
[329988811,1718900013840,-1721.07,0.00044383,120]
[329988812,1718900013865,-513.15,0.00044383,120]
[329988813,1718900013890,-813.19,0.00044383,120]
[329988814,1718900013915,-500.0,0.00044383,120]
[329988815,1718900013940,-732.45,0.00044383,120]
[329988816,1718900013964,-915.89,0.00044383,120]
[329988817,1718900013989,-500.0,0.00044383,120]
[329988818,1718900014013,-544.67,0.00044383,120]
[329988819,1718900014036,-500.0,0.00044383,120]
[329988820,1718900014060,-626.44,0.00044383,120]
[329988821,1718900014088,-500.0,0.00044383,120]
[329988822,1718900014112,-500.0,0.00044383,120]
[329988823,1718900014134,-543.79,0.00044383,120]
[329988824,1718900014158,-533.83,0.00044383,120]
[329988825,1718900014182,-500.0,0.00044383,120]
[329988826,1718900014205,-655.88,0.00044383,120]
[329988827,1718900014230,-705.55,0.00044383,120]
[329988828,1718900014253,-500.0,0.00044383,120]
[329988829,1718900014277,-500.0,0.00044383,120]
[329988830,1718900014300,-500.0,0.00044383,120]
[329988831,1718900014326,-856.6,0.00044383,120]
[329988832,1718900014349,-693.91,0.00044383,120]
[329988833,1718900014372,-10177.16490946,0.0004444,30]
[329988834,1718900014395,-151.0,0.00044493,120]
[329988835,1718900014524,-500.0,0.00044657,120]
[329988836,1718900014549,-150.0,0.00044657,120]
[329988837,1718900014575,-1192.0,0.00044657,120]
[329988838,1718900014598,-1500.0,0.00044657,120]
[329988839,1718900014626,-1195.47,0.00044657,120]
[329988840,1718900014650,-500.0,0.00044657,120]
[329988841,1718900014676,-562.67465703,0.00044657,120]
[329988842,1718900014702,-500.0,0.00044657,120]
[329988843,1718900014726,-500.0,0.00044657,120]
[329988844,1718900014750,-500.0,0.00044657,120]
[329988845,1718900014774,-500.0,0.00044657,120]
[329988846,1718900014799,-500.0,0.00044657,120]
[329988847,1718900014826,-500.0,0.00044657,120]
[329988848,1718900014850,-500.0,0.00044657,120]
[329988849,1718900014874,-500.0,0.00044657,120]
[329988850,1718900014898,-564.12,0.00044657,120]
[329988851,1718900014922,-500.0,0.00044657,120]
[329988852,1718900014946,-500.0,0.00044657,120]
[329988853,1718900014970,-500.0,0.00044657,120]
[329988854,1718900014995,-250.22233773,0.00044657,120]
[329988855,1718900015020,-500.0,0.00044657,120]
[329988856,1718900015045,-500.0,0.00044657,120]
[329988857,1718900015073,-500.0,0.00044657,120]
[329988858,1718900015097,-500.0,0.00044657,120]
[329988859,1718900015121,-500.0,0.00044657,120]
[329988860,1718900015143,-500.0,0.00044657,120]
[329988861,1718900015165,-500.30227898,0.00044657,120]
[329988862,1718900015189,-496.01192872,0.00044657,120]
[329988863,1718900015212,-500.0,0.00044657,120]
[329988864,1718900015234,-748.3,0.00044657,120]
[329988865,1718900015258,-500.0,0.00044657,120]
[329988866,1718900015282,-500.0,0.00044657,120]
[329988867,1718900015306,-2000.0,0.00044657,30]
[329988868,1718900015333,-500.0,0.00044657,120]
[329988869,1718900015357,-610.39,0.00044657,120]
[329988870,1718900015381,-500.0,0.00044657,120]
[329988871,1718900015405,-500.0,0.00044657,120]
[329988872,1718900015429,-534.5,0.00044657,120]
[329988873,1718900015452,-500.0,0.00044657,120]
[329988874,1718900015474,-1606.87,0.00044657,120]
[329988875,1718900015499,-1724.15,0.00044657,120]
[329988876,1718900015524,-3055.55,0.00044657,120]
[329988877,1718900015547,-707.05,0.00044657,120]
[329988878,1718900015575,-1511.35,0.00044657,120]
[329988879,1718900015597,-500.0,0.00044657,120]
[329988880,1718900015622,-1183.48,0.00044657,120]
[329988881,1718900015649,-3226.18,0.00044657,120]
[329988882,1718900015672,-500.0,0.00044657,120]
[329988883,1718900015696,-500.0,0.00044657,120]
[329988884,1718900015722,-4019.06,0.00044657,120]
[329988885,1718900015746,-500.0,0.00044657,120]
[329988886,1718900015769,-500.0,0.00044657,120]
[329988887,1718900015792,-500.0,0.00044657,120]
[329988888,1718900015820,-765.62,0.00044657,120]
[329988889,1718900015844,-557.27,0.00044657,120]
[329988890,1718900015870,-500.0,0.00044657,120]
[329988891,1718900015895,-500.0,0.00044657,120]
[329988892,1718900015920,-500.0,0.00044657,120]
[329988893,1718900015945,-10288.83,0.00044657,120]
[329988894,1718900015970,-1191.07,0.00044657,120]
[329988895,1718900015995,-2840.05,0.00044657,120]
[329988896,1718900016019,-639.74,0.00044657,120]
[329988897,1718900016043,-693.8,0.00044657,120]
[329988898,1718900016069,-500.0,0.00044657,120]
[329988899,1718900016094,-562.39,0.00044657,120]
[329988900,1718900016118,-671.26,0.00044657,120]
[329988901,1718900016144,-1140.79,0.00044657,120]
[329988902,1718900016168,-1174.23,0.00044657,120]
[329988903,1718900016192,-500.0,0.00044657,120]
[329988904,1718900016217,-500.0,0.00044657,120]
[329988905,1718900016241,-500.0,0.00044657,120]
[329988906,1718900016266,-500.0,0.00044657,120]
[329988907,1718900016290,-500.0,0.00044657,120]
[329988908,1718900016314,-1829.84,0.00044657,120]
[329988909,1718900016341,-617.11,0.00044657,120]
[329988910,1718900016369,-3965.02,0.00044657,120]
[329988911,1718900016392,-592.27,0.00044657,120]
[329988912,1718900016417,-7899.83,0.00044657,120]
[329988913,1718900016441,-5049.28,0.00044657,120]
[329988914,1718900016466,-500.0,0.00044657,120]
[329988915,1718900016490,-500.0,0.00044657,120]
[329988916,1718900016514,-500.0,0.00044657,120]
[329988917,1718900016538,-500.0,0.00044657,120]
[329988918,1718900016563,-3061.29,0.00044657,120]
[329988919,1718900016590,-500.0,0.00044657,120]
[329988920,1718900016619,-1095.71,0.00044657,120]
[329988921,1718900016644,-500.0,0.00044657,120]
[329988922,1718900016671,-577.95,0.00044657,120]
[329988923,1718900016698,-500.0,0.00044657,120]
[329988924,1718900016723,-2778.78,0.00044657,120]
[329988925,1718900016990,-856.18,0.00044657,120]
[329988926,1718900017017,-1229.68,0.00044657,120]
[329988927,1718900017042,-500.0,0.00044657,120]
[329988928,1718900017068,-500.0,0.00044657,120]
[329988929,1718900017102,-5509.83,0.00044657,120]
[329988930,1718900017128,-632.53902709,0.00044657,120]
[329988931,1718900017152,-1171.19,0.00044657,120]
[329988932,1718900017176,-962.26,0.00044657,120]
[329988933,1718900017201,-500.0,0.00044657,120]
[329988934,1718900017227,-500.0,0.00044657,120]
[329988935,1718900017253,-1487.04,0.00044657,120]
[329988936,1718900017278,-500.0,0.00044657,120]
[329988937,1718900017303,-500.0,0.00044657,120]
[329988938,1718900017328,-500.0,0.00044657,120]
[329988939,1718900017352,-1344.84,0.00044657,120]
[329988940,1718900017377,-726.84,0.00044657,120]
[329988941,1718900017402,-500.0,0.00044657,120]
[329988942,1718900017426,-500.0,0.00044657,120]
[329988943,1718900017452,-837.29,0.00044657,120]
[329988944,1718900017476,-500.0,0.00044657,120]
[329988945,1718900017499,-1233.74,0.00044657,120]
[329988946,1718900017522,-690.42,0.00044657,120]
[329988947,1718900017547,-500.0,0.00044657,120]
[329988948,1718900017573,-1968.52,0.00044657,120]
[329988949,1718900017598,-1665.54,0.00044657,120]
[329988950,1718900017622,-1042.91,0.00044657,120]
[329988951,1718900017650,-500.0,0.00044657,120]
[329988952,1718900017675,-1721.07,0.00044657,120]
[329988953,1718900017699,-513.15,0.00044657,120]
[329988954,1718900017726,-813.19,0.00044657,120]
[329988955,1718900017749,-500.0,0.00044657,120]
[329988956,1718900017773,-732.45,0.00044657,120]
[329988957,1718900017796,-915.89,0.00044657,120]
[329988958,1718900017820,-500.0,0.00044657,120]
[329988959,1718900017846,-544.67,0.00044657,120]
[329988960,1718900017870,-500.0,0.00044657,120]
[329988961,1718900017895,-626.44,0.00044657,120]
[329988962,1718900017920,-500.0,0.00044657,120]
[329988963,1718900017944,-543.79,0.00044657,120]
[329988964,1718900017968,-533.83,0.00044657,120]
[329988965,1718900017991,-500.0,0.00044657,120]
[329988966,1718900018016,-655.88,0.00044657,120]
[329988967,1718900018042,-705.55,0.00044657,120]
[329988968,1718900018066,-500.0,0.00044657,120]
[329988969,1718900018096,-500.0,0.00044657,120]
[329988970,1718900018119,-500.0,0.00044657,120]
[329988971,1718900018142,-856.6,0.00044657,120]
[329988972,1718900018168,-693.91,0.00044657,120]
[329988973,1718900018193,-12259.86083637,0.000449,120]
[329988974,1718900018216,-500.0,0.00044931,120]
[329988975,1718900018240,-150.0,0.00044931,120]
[329988976,1718900018263,-1192.0,0.00044931,120]
[329988977,1718900018286,-1500.0,0.00044931,120]
[329988978,1718900018309,-1195.47,0.00044931,120]
[329988979,1718900018334,-500.0,0.00044931,120]
[329988980,1718900018357,-437.37620139,0.00044931,120]
[329988981,1718900018381,-500.0,0.00044931,120]
[329988982,1718900018404,-500.0,0.00044931,120]
[329988983,1718900018428,-500.0,0.00044931,120]
[329988984,1718900018452,-500.0,0.00044931,120]
[329988985,1718900018477,-500.0,0.00044931,120]
[329988986,1718900018501,-500.0,0.00044931,120]
[329988987,1718900018525,-564.12,0.00044931,120]
[329988988,1718900018552,-500.0,0.00044931,120]
[329988989,1718900018583,-500.0,0.00044931,120]
[329988990,1718900018612,-500.0,0.00044931,120]
[329988991,1718900018640,-500.0,0.00044931,120]
[329988992,1718900018668,-500.0,0.00044931,120]
[329988993,1718900018695,-500.0,0.00044931,120]
[329988994,1718900018722,-500.0,0.00044931,120]
[329988995,1718900018746,-500.0,0.00044931,120]
[329988996,1718900018806,-500.0,0.00044931,120]
[329988997,1718900018829,-500.0,0.00044931,120]
[329988998,1718900018854,-748.3,0.00044931,120]
[329988999,1718900018881,-500.0,0.00044931,120]
[329989000,1718900018906,-500.0,0.00044931,120]
[329989001,1718900018931,-2000.0,0.00044931,30]
[329989002,1718900018955,-500.0,0.00044931,120]
[329989003,1718900018979,-610.39,0.00044931,120]
[329989004,1718900019003,-500.0,0.00044931,120]
[329989005,1718900019028,-500.0,0.00044931,120]
[329989006,1718900019055,-534.5,0.00044931,120]
[329989007,1718900019085,-500.0,0.00044931,120]
[329989008,1718900019112,-1606.87,0.00044931,120]
[329989009,1718900019140,-1724.15,0.00044931,120]
[329989010,1718900019166,-3055.55,0.00044931,120]
[329989011,1718900019192,-707.05,0.00044931,120]
[329989012,1718900019219,-1511.35,0.00044931,120]
[329989013,1718900019246,-500.0,0.00044931,120]
[329989014,1718900019272,-1183.48,0.00044931,120]
[329989015,1718900019299,-3226.18,0.00044931,120]
[329989016,1718900019331,-500.0,0.00044931,120]
[329989017,1718900019358,-500.0,0.00044931,120]
[329989018,1718900019387,-4019.06,0.00044931,120]
[329989019,1718900019414,-500.0,0.00044931,120]
[329989020,1718900019439,-500.0,0.00044931,120]
[329989021,1718900019477,-500.0,0.00044931,120]
[329989022,1718900019506,-765.62,0.00044931,120]
[329989023,1718900019535,-557.27,0.00044931,120]
[329989024,1718900019563,-500.0,0.00044931,120]
[329989025,1718900019594,-500.0,0.00044931,120]
[329989026,1718900019624,-500.0,0.00044931,120]
[329989027,1718900019653,-10288.83,0.00044931,120]
[329989028,1718900019680,-1191.07,0.00044931,120]
[329989029,1718900019710,-2840.05,0.00044931,120]
[329989030,1718900019736,-639.74,0.00044931,120]
[329989031,1718900019764,-693.8,0.00044931,120]
[329989032,1718900019791,-408.82832458,0.00044931,120]
[329989033,1718900019818,-562.39,0.00044931,120]
[329989034,1718900019849,-671.26,0.00044931,120]
[329989035,1718900019876,-1140.79,0.00044931,120]
[329989036,1718900019902,-1174.23,0.00044931,120]
[329989037,1718900019928,-500.0,0.00044931,120]
[329989038,1718900019955,-500.0,0.00044931,120]
[329989039,1718900019982,-500.0,0.00044931,120]
[329989040,1718900020008,-500.0,0.00044931,120]
[329989041,1718900020034,-500.0,0.00044931,120]
[329989042,1718900020060,-1829.84,0.00044931,120]
[329989043,1718900020090,-617.11,0.00044931,120]
[329989044,1718900020116,-3965.02,0.00044931,120]
[329989045,1718900020142,-592.27,0.00044931,120]
[329989046,1718900020170,-7899.83,0.00044931,120]
[329989047,1718900020196,-5049.28,0.00044931,120]
[329989048,1718900020226,-500.0,0.00044931,120]
[329989049,1718900020254,-500.0,0.00044931,120]
[329989050,1718900020279,-500.0,0.00044931,120]
[329989051,1718900020306,-500.0,0.00044931,120]
[329989052,1718900020338,-3061.29,0.00044931,120]
[329989053,1718900020364,-206.65586151,0.00044931,120]
[329989054,1718900020394,-1095.71,0.00044931,120]
[329989055,1718900020421,-500.0,0.00044931,120]
[329989056,1718900020448,-577.95,0.00044931,120]
[329989057,1718900020476,-500.0,0.00044931,120]
[329989058,1718900020503,-2778.78,0.00044931,120]
[329989059,1718900020530,-856.18,0.00044931,120]
[329989060,1718900020557,-1229.68,0.00044931,120]
[329989061,1718900020587,-500.0,0.00044931,120]
[329989062,1718900020614,-500.0,0.00044931,120]
[329989063,1718900020643,-5509.83,0.00044931,120]
[329989064,1718900020669,-1171.19,0.00044931,120]
[329989065,1718900020697,-962.26,0.00044931,120]
[329989066,1718900020723,-500.0,0.00044931,120]
[329989067,1718900020750,-500.0,0.00044931,120]
[329989068,1718900020776,-1487.04,0.00044931,120]
[329989069,1718900020804,-500.0,0.00044931,120]
[329989070,1718900020830,-500.0,0.00044931,120]
[329989071,1718900020857,-500.0,0.00044931,120]